Cogmind - Beta 14 @@@ ROGUE MODE // 2024.09.29 @ 23:06:01 Player: Some Pennies Result: Destroyed by SD-9EZ(R) with Subdweller Laser Performance ------------- Evolutions (0) 0 Regions Visited (2) 400 Robots Destroyed (37) 185 Value Destroyed (834) 834 Prototype IDs (0) 0 Alien Tech Used (0) 0 Bonus (0) 0 TOTAL SCORE: 1419 Bonus ------- None Cogmind --------- Core Integrity 0/250 Matter 252/300 Energy 15/100 System Corruption 1% Temperature Cool (6) Movement Treading (160) Location -10/Subcaves Parts ------- > --- POWER (1) -------- (None) > --- PROPULSION (2) --- Light Treads Light Treads > --- UTILITY (2) ------ (None) > --- WEAPON (2) ------- Subdweller Machine Gun Mining Laser > --- INVENTORY (5) ---- Hacking Suite Subdweller Laser Subdweller Shrapnel Launcher Peak State ------------ > --- POWER ------------ Ion Engine > --- PROPULSION ------- Light Treads Light Treads > --- UTILITY ---------- Scrap Shield > --- WEAPON ----------- Subdweller Laser Subdweller Beam Cannon > --- INVENTORY -------- Light Treads Hacking Suite Subdweller Machine Gun Subdweller Shrapnel Launcher Mining Laser [Rating: 11] Favorites ----------- Power Ion Engine Engine Ion Engine Propulsion Light Treads Treads Light Treads Utility Heat Sink Device Heat Sink Storage Large Storage Unit Protection Scrap Shield Weapon Beam Cannon Energy Gun Medium Laser Energy Cannon Beam Cannon Ballistic Gun Subdweller Machine Gun Launcher Subdweller Shrapnel Launcher Special Weapon Mining Laser Build | -11 -10 -10 ------- Run | Yrd Mat Sub Slots Evolved . | . . . Power . | . . . Propulsion . | . . . Utility . | . . . Weapon . | . . . Parts Attached 26 | 8 6 12 Power 2 | 1 . 1 Engine 2 | 1 . 1 Core . | . . . Reactor . | . . . Propulsion 5 | 2 . 3 Treads 5 | 2 . 3 Leg . | . . . Wheel . | . . . Hover . | . . . Flight . | . . . Utility 8 | 3 4 1 Device 4 | 2 2 . Storage 2 | 1 1 . Processor . | . . . Hackware . | . . . Protection 2 | . 1 1 Artifact . | . . . Weapon 11 | 2 2 7 Energy Gun 4 | 2 . 2 Energy Cannon 2 | . 1 1 Ballistic Gun 2 | . . 2 Ballistic Cannon . | . . . Launcher 1 | . . 1 Special Weapon 2 | . 1 1 Impact Weapon . | . . . Slashing Weapon . | . . . Piercing Weapon . | . . . Special Melee Weapon . | . . . Unidentified Prototypes . | . . . Parts Lost 3 | . . 3 Power 1 | . . 1 Propulsion 1 | . . 1 Utility 1 | . . 1 Weapon . | . . . Highest Loss Streak 3 | . . 3 To Critical Strikes . | . . . Average Slot Usage (%) 93 | . 99 86 Engine 13 | . 14 13 Treads 28 | . 28 28 Device 7 | . 13 . Storage 9 | . 14 2 Protection 6 | . . 12 Energy Gun 11 | . 16 4 Energy Cannon 16 | . 11 22 Peak Build Rating 11 | 9 8 11 Average Rating 8 | 6 7 9 On Entrance 5 | . 7 8 Naked Turns . | . . . Heaviest Build 35 | 14 32 35 Greatest Support 40 | 40 40 40 Greatest Overweight (x) . | . . . Average Overweight (x) . | . . . Largest Inventory Capacity 15 | 8 15 15 Average Capacity 9 | 7 12 7 Most Carried 15 | 3 15 15 Average Carried 8 | 1 10 6 Final Capacity 15 | 8 15 5 Final Carried 15 | 3 15 3 Class Distribution -------------------- 68% | Mutant 27% | Scavenger-Mutant 3% | Subdweller-Mutant Dominant Class ---------------- Mutant | -10/Materials Scavenger-Mutant | -10/Subcaves Resources | -11 -10 -10 ----------- Run | Yrd Mat Sub Matter Collected 457 | 280 40 137 Remotely . | . . . Salvage Created 1247 | 156 757 334 Parts 80 | 14 43 23 Haulers Intercepted 2 | . 2 . Recyclers Shooed 2 | . 2 . Parts Field Recycled . | . . . Retrieved Matter . | . . . Parts Self-Destructed 5 | . . 5 Prevented . | . . . Kills | -11 -10 -10 ------- Run | Yrd Mat Sub Combat Hostiles Destroyed 24 | . 15 9 Guns 9 | . 7 2 Cannons 11 | . 7 4 AOE 3 | . . 3 Classes Destroyed 10 | 3 6 1 Worker 1 | 1 . . Builder 1 | . 1 . Tunneler 4 | 4 . . Hauler 2 | . 2 . Recycler 2 | 1 1 . Operator 1 | . 1 . Watcher 2 | . 2 . Swarmer 6 | . 6 . Grunt 9 | . 9 . Subdweller 9 | . . 9 Best Kill Streak 7 | 6 7 4 Combat Bots Only 4 | . 4 4 Max Kills in Single Turn 3 | 1 2 3 Gunslinging . | . . . Exploded 3 | . . 3 Melee . | . . . Uniques/NPCs Destroyed . | . . . Combat | -11 -10 -10 -------- Run | Yrd Mat Sub Hostile Shots Fired 112 | . 54 58 Missed 31 | . 20 11 Damage Taken 1436 | . 338 1098 Core 259 | . 89 170 Absorbed by Shields . | . . . Core Remaining (%) 100 | 100 . . Volleys Fired 116 | 10 68 38 Largest 2 | 2 2 2 Hottest 140 | 90 110 140 Shots Fired 210 | 20 129 61 Gun 116 | 20 72 24 Cannon 84 | . 51 33 Launcher 1 | . . 1 Special 9 | . 6 3 Kinetic 11 | . . 11 Thermal 199 | 20 129 50 Explosive . | . . . Electromagnetic . | . . . Robot Hit Streak 28 | 4 10 28 Robot Miss Streak 4 | 1 4 2 Penetration Max . | . . . Secondary Targets . | . . . Shots Hit Robots 143 | 13 79 51 Core Hits 51 | 7 30 14 Critical Kills 1 | . 1 . Critical Parts Destroyed . | . . . Critical Strikes 7 | . 6 1 Burn 5 | . 5 . Meltdown 1 | . 1 . Destroy 1 | . . 1 Melee Attacks . | . . . Impact . | . . . Slashing . | . . . Piercing . | . . . Sneak Attacks . | . . . Combat Hostiles . | . . . Follow-up Attacks . | . . . Damage Inflicted 2664 | 154 1186 1324 Guns 1191 | 154 632 405 Cannons 1173 | . 554 619 Explosions 228 | . . 228 Melee . | . . . Ramming . | . . . Kinetic 391 | . . 391 Thermal 2273 | 154 1186 933 Explosive . | . . . Electromagnetic . | . . . Impact . | . . . Slashing . | . . . Piercing . | . . . Highest Corruption 1 | . 1 1 Average Corruption 1 | . 1 1 Corruption Purged . | . . . Corruption Blocked . | . . . Effects 6 | . 1 5 Message Errors 1 | . 1 . Matter Fused 2 | . . 2 Heat Flow Errors 1 | . . 1 Data Loss (minor) 1 | . . 1 Data Loss (major) 1 | . . 1 Overload Shots . | . . . Overflow Damage 18 | . 18 . Projectiles 18 | . 18 . Explosions . | . . . Melee . | . . . Knockbacks . | . . . Impact . | . . . Kinetic . | . . . Secondary . | . . . Self-Inflicted Damage 59 | . . 59 Shots 1 | . . 1 Rammed . | . . . Targets Rammed . | . . . Kicked . | . . . Crushed . | . . . Highest Temperature 214 | 180 158 214 Average Temperature 52 | 71 48 54 Received Heat Transfer 324 | . 126 198 Siege Activations . | . . . Robots Corrupted . | . . . Combat Hostiles . | . . . Parts Fried . | . . . Impact Corruptions . | . . . Robots Melted 1 | . 1 . Combat Hostiles 1 | . 1 . Parts Melted 9 | . 8 1 Heat Transferred 5092 | 397 3271 1424 Parts Sabotaged . | . . . Parts Stolen . | . . . Parts Stripped . | . . . Power Chain Reactions . | . . . Alert | -11 -10 -10 ------- Run | Yrd Mat Sub Peak Influence 302 | 30 302 . Initial 19 | . 19 . Average 149 | 15 172 . Maximum Alert Level 1 | . 1 . Low Security (%) 73 | 100 69 . Level 1 26 | . 30 . Level 2 . | . . . Level 3 . | . . . Level 4 . | . . . Level 5 . | . . . High Security . | . . . Max Security . | . . . Squads Dispatched 4 | . 4 . Investigation 2 | . 2 . Extermination . | . . . Reinforcement 2 | . 2 . Assault . | . . . Garrison . | . . . Intercept . | . . . Searches Triggered . | . . . Construction Impeded . | . . . Haulers Reinforced . | . . . Active Scanning Responses . | . . . Cargo Convoy Interrupts . | . . . Stealth | -11 -10 -10 --------- Run | Yrd Mat Sub Distress Signals 1 | . 1 . Communications Jammed . | . . . Distress Signals . | . . . Times Spotted 34 | . 24 10 Peak Tracking Total 4 | . 3 4 Tactical Retreats 2 | . 2 . Traps | -11 -10 -10 ------- Run | Yrd Mat Sub Traps Triggered 3 | . 1 2 Indirectly . | . . . Trap Hack Attempts . | . . . Triggered . | . . . Disarmed . | . . . Reprogrammed . | . . . Reused . | . . . Traps Extracted . | . . . Installed . | . . . Triggered . | . . . Machines | -11 -10 -10 ---------- Run | Yrd Mat Sub Machines Disabled 1 | . 1 . Max in Single Turn 1 | . 1 . Machines Repaired . | . . . Machines Dismantled . | . . . Machines Sabotaged . | . . . Overloaded Fab Kills . | . . . Hacking | -11 -10 -10 --------- Run | Yrd Mat Sub Machines Accessed 5 | . 5 . Terminals 3 | . 3 . Fabricators . | . . . Repair Stations . | . . . Recycling Units 2 | . 2 . Scanalyzers . | . . . Garrison Access . | . . . Total Hacks 14 | . 14 . Successful 10 | . 10 . Failed 3 | . 3 . Catastrophic 1 | . 1 . Database Lockouts 1 | . 1 . Manual 12 | . 12 . Terminals 10 | . 10 . Fabricators . | . . . Repair Stations . | . . . Recycling Units 4 | . 4 . Scanalyzers . | . . . Garrison Access . | . . . Terminal Hacks 2 | . 2 . Robot Analysis 2 | . 2 . Fabricator Hacks . | . . . Repair Station Hacks . | . . . Recycling Unit Hacks 2 | . 2 . Retrieve Components 2 | . 2 . Scanalyzer . | . . . Garrison Access Hacks . | . . . Unauthorized Hacks 6 | . 6 . Terminals 4 | . 4 . Botnet 1 | . 1 . Skim 3 | . 3 . Fabricators . | . . . Repair Stations . | . . . Recycling Units 2 | . 2 . Tunnel 2 | . 2 . Scanalyzers . | . . . Garrison Access . | . . . Data Cores Recovered . | . . . Used . | . . . Hacking Detections 3 | . 3 . Full Trace Events . | . . . Feedback Events . | . . . Feedback Blocked . | . . . Robot Schematics Acquired . | . . . Robots Built . | . . . Authchips . | . . . Time . | . . . Total Robot Build Rating . | . . . Part Schematics Acquired . | . . . Parts Built . | . . . Authchips . | . . . Time . | . . . Total Part Build Rating . | . . . Parts Repaired . | . . . Time . | . . . Parts Recycled . | . . . Recycled Matter . | . . . Retrieved Matter . | . . . Retrieved Components 12 | . 12 . Parts Scanalyzed . | . . . Part Schematics Acquired . | . . . Parts Damaged . | . . . Bothacking | -11 -10 -10 ------------ Run | Yrd Mat Sub Used RIF Installer . | . . . Robots Hacked . | . . . Non-combat . | . . . Combat . | . . . Robot Hacks Applied . | . . . Relay Couplers Released . | . . . Fabnet Peak Effective % . | . . . Robots Rewired . | . . . Allies Hacked . | . . . Hacks Repelled . | . . . Allies | -11 -10 -10 -------- Run | Yrd Mat Sub Total Allies . | . . . Largest Group . | . . . Highest-Rated Group . | . . . Highest-Rated Ally . | . . . Total Orders . | . . . Ally Attacks . | . . . Total Damage . | . . . Kills . | . . . Allies Corrupted . | . . . Allies Melted . | . . . Intel | -11 -10 -10 ------- Run | Yrd Mat Sub Robot Analysis Total 2 | . 2 . Derelict Logs Recovered 1 | . . 1 Drone Launches . | . . . Drone Recoveries . | . . . Exploration | -11 -10 -10 ------------- Run | Yrd Mat Sub Turns Passed 2146 | 191 1093 862 Spaces Moved 977 | 94 460 423 Core 4 | 4 . . Treads 973 | 90 460 423 Legs . | . . . Wheels . | . . . Hover . | . . . Flight . | . . . Fastest Speed 50 | 50 160 160 Average Speed 159 | 155 160 160 Slowest Speed 160 | 160 160 160 Overloaded Moves . | . . . Propulsion Burnouts . | . . . Robots Hopped . | . . . Cave-ins Triggered . | . . . Exploration Rate (%) 29 | 5 59 25 Regions Visited 2 Branch Regions 1 Pre-discovered Areas 3 | . 2 1 Known Exits Taken . | . . . Unknown Exits Taken 2 | 1 1 . Scrap Searched . | . . . Spaces Dug . | . . . Terrain Destroyed 19 | . . 19 Melee . | . . . Projectile . | . . . AOE 19 | . . 19 Terrain Rammed . | . . . Walls Destroyed . | . . . Machines Disabled . | . . . Actions | -11 -10 -10 --------- Run | Yrd Mat Sub Total 1336 | 116 677 543 Wait 166 | . 126 40 Move 975 | 93 459 423 Hop . | . . . Pick Up 21 | 4 13 4 Fast Attach 11 | 7 1 3 Attach 1 | . . 1 Detach 2 | . 1 1 Swap 14 | 1 5 8 Drop 24 | 1 4 19 Fire 116 | 10 68 38 Melee . | . . . Ram . | . . . Kick . | . . . Crush . | . . . Escape Stasis . | . . . Rewire . | . . . Trap . | . . . Miscellaneous 6 | . . 6 Route ------- -11/Scrapyard -10/Materials (discovered 4 exits: [*Mat] / [*Min x2] / [*Sub]) -10/Subcaves History --------- Turn | Location | Event 7 | -11/Scrapyard | Discovered new exit (range 15) 192 | -11/Scrapyard | Entered Materials 307 | -10/Materials | Build established: Mutant 603 | -10/Materials | Discovered new exit (range 12) 1011 | -10/Materials | Discovered new exit (range 12) 1057 | -10/Materials | Discovered new exit (range 5) 1112 | -10/Materials | Central database locked down 1276 | -10/Materials | Discovered new exit (range 3) 1285 | -10/Materials | Entered Subcaves 1315 | -10/Subcaves | Shifting Twisted Machinery released Sub. Shrapnel Launcher 1334 | -10/Subcaves | Shifting Twisted Machinery released Sub. Machine Gun 1625 | -10/Subcaves | A swath of the cavern ceiling suddenly collapsed 1709 | -10/Subcaves | Learned location of Zion (-6) 1754 | -10/Subcaves | Build established: Scavenger-Mutant 2061 | -10/Subcaves | A Subdweller sparked back to life 2061 | -10/Subcaves | A Subdweller sparked back to life 2061 | -10/Subcaves | A Subdweller sparked back to life 2101 | -10/Subcaves | Core integrity fell below 50% 2142 | -10/Subcaves | Core integrity fell below 20% 2147 | -10/Subcaves | Destroyed by SD-9EZ(R) with Subdweller Laser Last Messages --------------- to move. 02081_ Critical hit (Destroy). 02090_ Sub. Monowheel melted. 02090_ K5-BZO(R) destroyed. 02091_ Scrap Shield destroyed. 02093_ Ion Engine destroyed. 02098_ T2-JTZ(R) affixes Scrap Shield Fragment to Scrap Shield. 02099_ T2-JTZ(R) suffers critical hit (Destroy). 02099_ Sub. Beam Cannon shoots sparks and powers down. 02106_ T2-JTZ(R) affixes Scrap Shield Fragment to Scrap Shield. 02110_ T2-JTZ(R) destroyed. 02113_ Dropped Broken Sub. Beam Cannon. 02119_ Sub. Laser shoots sparks and powers down. 02121_ Lgt. Treads destroyed. 02122_ System corrupted: Matter fused (-5). 02129_ Sub. Machine Gun shoots sparks and powers down. Map ----- +----------------------------------------------------+ | #?????# ## #?????????????????????????????????? | | ??????## ##?###?????????????????????????????????? | | ???????# ##??????????????????????????????????????? | | ???????###???????????????????????????????????????? | | ?????????????????????????????????????????????????? | | ????????????????????????? ???????????????????????? | | ??????????????????????? ? ???????????????????????? | | ??????????????????????? ??????????????????????? | | ?????????????????????#? ??????????????????????? | | ??????????????????### " # ??????#???????????????? | | ??????????????????? " ????? ##??????????????? | | ???????????????????? ????? ##?????????????? | | ???????????????????? ???? ##????????????? | | ????????????????????# " ???? ###??????????? | | ????????????????????# ##?# #??????????? | | ????????????????????# ## ???????????? | | ????????????????????# ? ????????????? | | ????????????????????# ?# ?????????????? | | ???????????????????## ?# """"??????????????? | | ???????????????????# # ""????????????????? | | ??????????????????## ### ##??????????????????? | | ??????????????????# # ### #??????????????????? | | ????????????????### ### ##??????????????????? | | ???????????????## ##=*""#" #??????????????? | | ??????????????## ##%! "" #???????????????? | | ??????????????# #@# "" #???????????????? | | ???????????????# R*]! "" #???????????????? | | ????????????????#### ###""" #???????????????? | | ???????????????????# ##??######???????????????? | | ?????????????????### #????????????????????????? | | ????????????????## ##????????????????????????? | | ????????????????# #?????????????????????????? | | ????????????##### #?????????????????????????? | | ######??????# ## ] ##?????????????????????????? | | "##?????# ####??????????????????????????? | | """ ####### &%##?????????????????????????????? | | # ## # * #??????????????????????????????? | | #??????????????????????????????? | | ## #??????????????????????????????? | | ?## # ## #??????????????????????????????? | | ??## ####### #?????????????????????????????? | | ???## #????### ##?????????????????????????????? | | ????# #??????# #??????????????????????????????? | | ????# #?????? %?????????????????????????????? | | ????# ????? % ????????????????????????????? | | ????# ??? ???????????????????????????? | | ????# ?? ?????????????????????????? | | ????# ### ### ????????????????????????? | | ????# ##?? #??? ????????????????????????? | | ????? ###?? ## #???? ????????????????????????? | +----------------------------------------------------+ Best States ------------- Heat Dissipation 35 Energy Generation 10 Energy Capacity 250 Matter Stores 300 Matter Capacity 300 Sight Range 16 Terrain Scan Range 16 Terrain Scan Density 10 Armor Coverage 800 Evasion (%) 40 Recoil Reduction 2 Item Schematics ----------------- None Robot Schematics ------------------ None Fabricated ------------ Nothing Alien Tech Used ----------------- None Achievements -------------- None Challenges ------------ None Game ------ Seed HardenedArcRipteeth Manual? 0 Play Time 00:14:24 Cumulative 345.1 hours Start 2024.09.29 @ 22:53:21 End 2024.09.29 @ 23:06:01 Sessions 1 Manual Loads 0 Difficulty Rogue Special Mode None Game No. 249 Rogue 244 Adventurer 5 Explorer 0 Win Type - Total 7 Types 4/0/3/0/0/0/0/0/0 Lore% 67 Gallery% 85 Achievement% 70 Wizard Run 0 Options --------- Layout 2 ASCII 0 Keyboard 0 Movement Mouse Keybinds 0 Fullscreen 2 Font 24/Smallcaps Map View 50x44 Zoom Use 0% Tactical HUD 1 Map Filters NONE Filters NONE Steam 1 RUN: f67a0467-3a37-42b5-81fb-d0efe3a536a2